[Event "Mitropa Cup Women 2022"]
[Site "Corte"]
[Date "2022.05.06"]
[Round "7.4"]
[White "Sevcikova, Lucia"]
[Black "Buchholz, Maja"]
[Result "1-0"]
[ECO "E77"]
[WhiteElo "2019"]
[BlackElo "1945"]
[Annotator "TA"]
[PlyCount "87"]
[EventDate "2022.04.30"]
[EventType "team-tourn"]
[EventCountry "FRA"]
[SourceTitle "playchess.com"]
[Source "ChessBase"]
[SourceQuality "1"]
[WhiteTeam "Slovakia"]
[BlackTeam "Germany"]
[WhiteTeamCountry "SVK"]
[BlackTeamCountry "GER"]
[TimeControl "40/5400+30:1800+30"]

{[%evp 25,87,0,25,4,34,-33,0,-22,0,0,0,-15,10,-64,6,17,8,15,14,-20,-29,-20,-21,-23,-21,-19,-18,-18,-22,-39,0,19,607,572,564,534,518,364,1500,1443,1479,1470,1385,1354,1245,1035,1027,1016,944,939,901,906,1125,1110,1341,1333,29985,29986,29986,29987,12845,4067,29985,2800]} 1. d4 {[%emt 0:00:04]} Nf6 {[%emt 0:00:06]} 2. c4 {[%emt 0:00:06]} g6 {[%emt 0:00:05]} 3. Nc3 {[%emt 0:00:05]} Bg7 {[%emt 0:00:05]} 4. e4 {[%emt 0:00:04]} d6 {[%emt 0:00:05]} 5. f4 {[%emt 0:00:04]} O-O {[%emt 0:00:06]} 6. Nf3 {[%emt 0:00:02]} c5 {[%emt 0:00:07]} 7. d5 {[%emt 0:00:05]} e6 {[%emt 0:00:11]} 8. Be2 {[%emt 0:00:05]} exd5 {[%emt 0:00:08]} 9. cxd5 {[%emt 0:00:05]} Bg4 {[%emt 0:00:08]} 10. O-O {[%emt 0:03:40]} Re8 {[%emt 0:00:11]} 11. h3 {[%emt 0:01:36]} Bxf3 {[%emt 0:00:43]} 12. Bxf3 {[%emt 0:00:04]} Nbd7 {[%emt 0:00:14]} 13. Re1 {[%emt 0:09:37]} Qa5 {[%emt 0:00:48]} 14. Bd2 {[%emt 0:11:12] A68: Modern Benoni: Four Pawns Attack without 9...Re8.} b5 {[%emt 0:04:53] [#]} 15. Ne2 $146 {[%emt 0:04:51]} (15. a3 $14) ({Predecessor:} 15. Qc2 b4 16. Nd1 Nb6 17. a3 Qa6 18. Qb1 b3 19. a4 Re7 20. a5 Nbd7 21. Be2 c4 {0-1 (42) Jarmuz,F (1822)-Quirk,M (1998) ICCF email 2016}) 15... Qb6 {[%emt 0:03:49]} 16. Ng3 {[%emt 0:03:27] The position is equal.} a5 {[%emt 0:01:57]} 17. Be3 {[%emt 0:04:36]} Rac8 {[%emt 0:09:36]} 18. Qd2 {[%emt 0:05:42]} Qc7 {[%emt 0:02:48]} 19. Rac1 {[%emt 0:06:21]} (19. Rad1 $11) 19... Nb6 {[%emt 0:22:38]} (19... c4 $1 $15) 20. b3 $11 {[%emt 0:09:20]} b4 {[%emt 0:08:06]} 21. e5 {[%emt 0:11:12]} Nfd7 {[%emt 0:12:47]} 22. Ne4 {[%emt 0:03:35]} dxe5 {[%emt 0:10:18]} 23. d6 {[%emt 0:03:13]} Qb8 {[%emt 0:01:04] Threatening ...c4.} 24. Bxc5 {[%emt 0:08:01]} f5 {[%emt 0:01:14]} 25. Ng5 {[%emt 0:07:57]} e4 {[%emt 0:04:19]} 26. Bxb6 {[%emt 0:01:51]} Qxb6+ {[%emt 0:02:04]} 27. Kh2 {[%emt 0:00:22] [#] Qd5+ would kill now. Chess con chili.} Rc5 {[%emt 0:04:57] Prevents Qd5+.} (27... Qd4 $15 28. Qxd4 Bxd4 29. Rxc8 Rxc8) 28. Be2 $1 {[%emt 0:03:54] Bc4+ is the strong threat.} Bc3 $2 {[%emt 0:03:36][%mdl 8192] This move loses the game for Black.} (28... h6 $11 29. Rxc5 Qxc5 30. Bc4+ Kh8 31. Nf7+ Kh7) 29. Bc4+ $18 {[%emt 0:00:29]} Kg7 {[%emt 0:00:11]} 30. Rxc3 {[%emt 0:01:21]} bxc3 {[%emt 0:00:05]} 31. Qd4+ {[%emt 0:00:51]} Nf6 $2 {[%emt 0:07:02]} (31... Rce5 32. Qxc3 Qxd6) 32. d7 {[%emt 0:01:07]} ({Weaker is} 32. Nxh7 Kxh7 33. Qxf6 Qd8 $11) 32... Rd8 {[%emt 0:01:06]} 33. Ne6+ {[%emt 0:00:22]} Qxe6 {[%emt 0:00:33]} 34. Bxe6 {[%emt 0:00:11]} Rc6 {[%emt 0:00:17]} 35. Bc4 {[%emt 0:00:49]} c2 {[%emt 0:00:15]} 36. Rc1 {[%emt 0:00:57][%cal Be1c1,Bc1c2,Bc2d2,Bd2d6][%mdl 32]} Rxd7 {[%emt 0:00:21]} 37. Qc3 {[%emt 0:00:33]} a4 {[%emt 0:01:26]} 38. Rxc2 {[%emt 0:00:10]} axb3 {[%emt 0:00:28]} 39. axb3 {[%emt 0:00:05]} Rd1 {[%emt 0:00:34]} 40. Rd2 {[%emt 0:00:40]} Rd6 {[%emt 0:00:23]} 41. Rxd6 {[%emt 0:30:47]} Rxd6 {[%emt 0:30:04]} 42. Qe5 {[%emt 0:00:00]} Rd7 {[%emt 0:00:00]} 43. b4 {[%emt 0:00:00] [#] Intending g4 and mate.} Rb7 {[%emt 0:00:00]} 44. b5 {[%emt 0:00:00] Weighted Error Value: White=0.25 (precise) /Black=0.80} (44. g4 $142 fxg4 45. hxg4 h6 46. g5 hxg5 47. fxg5 Kh7 48. gxf6 Kh6 49. f7) 1-0

[Event "Mitropa Cup Women 2022"]
[Site "Corte"]
[Date "2022.05.06"]
[Round "7.5"]
[White "Gaal, Zsoka"]
[Black "Hakimifard, Ghazal"]
[Result "1-0"]
[ECO "E06"]
[WhiteElo "2323"]
[BlackElo "2288"]
[Annotator "TA"]
[PlyCount "139"]
[EventDate "2022.04.30"]
[EventType "team-tourn"]
[EventCountry "FRA"]
[SourceTitle "playchess.com"]
[Source "ChessBase"]
[SourceQuality "1"]
[WhiteTeam "Hungary"]
[BlackTeam "Switzerland"]
[WhiteTeamCountry "HUN"]
[BlackTeamCountry "SUI"]
[TimeControl "40/5400+30:1800+30"]

{[%evp 21,139,-2,23,20,21,37,37,39,71,68,112,110,105,31,41,5,14,6,6,0,2,4,87,103,103,62,137,150,145,132,156,100,97,87,85,96,191,143,262,249,243,264,233,246,370,378,368,0,364,0,371,373,366,264,270,204,310,241,227,148,210,157,237,205,210,208,227,185,205,201,241,241,223,197,235,219,208,219,279,279,312,227,225,237,225,235,270,270,458,295,422,295,549,524,864,875,905,643,664,653,741,735,710,695,1177,1265,1041,892,5418,5364,2201,1292,4810,1145,1099,1072,5987,5315,29984,3606]} 1. d4 {[%emt 0:00:12]} Nf6 {[%emt 0:00:02]} 2. c4 {[%emt 0:00:13]} e6 {[%emt 0:00:10]} 3. g3 {[%emt 0:00:09]} d5 {[%emt 0:00:12]} 4. Nf3 {[%emt 0:00:09]} Be7 {[%emt 0:00:18]} 5. Bg2 {[%emt 0:00:19]} O-O {[%emt 0:00:21]} 6. O-O {[%emt 0:00:27]} dxc4 {[%emt 0:00:17]} 7. Qa4 {[%emt 0:12:42]} a6 {[%emt 0:00:25]} 8. Qxc4 {[%emt 0:00:10]} b5 {[%emt 0:00:07]} 9. Qc2 {[%emt 0:00:06]} Bb7 {[%emt 0:00:04]} 10. Bd2 {[%emt 0:00:09]} Be4 {[%emt 0:05:08]} 11. Qc1 {[%emt 0:00:20]} Nbd7 {[%emt 0:01:05]} 12. Ba5 {[%emt 0:03:41] E05: Open Catalan: 5 Nf3 Be7.} ({Don't play} 12. Nc3 Bb7 $15) 12... Ra7 {[%emt 0:08:39]} 13. Nbd2 {[%emt 0:05:24]} Ba8 {[%emt 0:00:11]} 14. Qc2 {[%emt 0:09:11] [#] White is slightly better.} b4 $146 {[%emt 0:15:42]} ({Predecessor:} 14... Qb8 15. b4 Nb6 16. Rac1 Rc8 17. Ne5 Bxg2 18. Kxg2 c6 19. Nxc6 Qb7 20. Bxb6 {1-0 (20) Iskusnyh,S (2473)-Sarkar,J (2377) Chess.com INT 2020}) 15. Rfc1 {[%emt 0:15:53][%cal Ra5c7] White is more active.} Nb6 {[%emt 0:08:32]} 16. a3 {[%emt 0:09:55]} bxa3 {[%emt 0:02:17]} 17. b4 {[%emt 0:01:21]} (17. bxa3 $16 Qd5 18. Bb4) 17... Nbd5 $14 {[%emt 0:07:23]} 18. Qc4 {[%emt 0:01:03][%mdl 1024] White has compensation.} Qb8 {[%emt 0:02:46][%cal Rd5b4]} 19. Rcb1 {[%emt 0:03:13]} Rb7 $1 {[%emt 0:05:59][%cal Rd5b4]} 20. Ne5 {[%emt 0:05:47]} Rb5 $1 {[%emt 0:02:29]} 21. Nd3 {[%emt 0:03:09]} Nd7 {[%emt 0:07:27]} (21... Nb6 $11 22. Bxb6 cxb6) 22. e4 $16 {[%emt 0:06:40]} N5b6 {[%emt 0:03:15]} 23. Qc3 {[%emt 0:00:19]} Bd6 {[%emt 0:08:06]} (23... e5 $14) 24. Qxa3 {[%emt 0:04:45]} e5 {[%emt 0:00:28]} 25. d5 {[%emt 0:01:18]} c6 {[%emt 0:01:36] [#]} 26. Bxb6 {[%emt 0:00:57]} ({White should play} 26. dxc6 $1 Bxc6 27. Bf1) 26... Nxb6 {[%emt 0:04:25]} 27. dxc6 {[%emt 0:00:51]} Bxc6 {[%emt 0:00:11]} 28. Qxa6 {[%emt 0:00:19]} Qc8 {[%emt 0:02:38]} (28... Qc7 $16 29. Qa3 Ra8) 29. Bf1 {[%emt 0:02:37]} (29. Qxc8 $18 Rxc8 30. Bf1) 29... Nd7 {[%emt 0:03:44]} (29... Qd7 $16) 30. Rc1 {[%emt 0:08:28]} Nb8 {[%emt 0:00:40]} 31. Qxc8 {[%emt 0:01:47]} Rxc8 {[%emt 0:00:01]} 32. Nc4 {[%emt 0:01:27]} Bc7 {[%emt 0:03:57]} (32... Bxb4 $142 33. Ncxe5 Bf8) 33. Na3 $18 {[%emt 0:01:26] Pair of Knights!} Rb6 {[%emt 0:00:30]} 34. Nc4 {[%emt 0:01:34][%csl LRb6,LRe5]} Rb5 {[%emt 0:00:01]} 35. Na3 {[%emt 0:00:04]} Rb6 {[%emt 0:00:02]} 36. b5 {[%emt 0:01:17]} Bxe4 {[%emt 0:05:31] [#]} 37. Nxe5 $1 {[%emt 0:00:01][%mdl 512]} Re6 {[%emt 0:01:03]} (37... Rb7 38. Rc4) 38. Nec4 {[%emt 0:00:49]} Nd7 {[%emt 0:00:04]} (38... Rd8 $142 39. Bg2 Bxg2) 39. Ne3 {[%emt 0:00:57] Bh3 is the strong threat.} g6 {[%emt 0:00:55]} 40. Nac4 {[%emt 0:00:43]} Ree8 {[%emt 0:02:15]} (40... Bb6 $16 41. Nxb6 Rxc1 42. Rxc1 Nxb6) 41. Ra7 {[%emt 0:08:21]} Nc5 {[%emt 0:05:25]} (41... Nb6 $16 42. Nd2 Bb8 43. Rxc8 Nxc8) 42. b6 {[%emt 0:14:11]} Bb8 {[%emt 0:00:22]} 43. Ra3 {[%emt 0:00:16]} Ne6 {[%emt 0:07:15]} 44. Rd1 {[%emt 0:07:01] Prevents Nd4.} Red8 {[%emt 0:02:50]} 45. Rxd8+ {[%emt 0:00:31]} Rxd8 {[%emt 0:00:01]} 46. Bg2 {[%emt 0:00:19]} Bd3 {[%emt 0:01:54]} 47. Bd5 {[%emt 0:01:12]} Nc5 {[%emt 0:03:36]} (47... Rxd5 $2 48. Nxd5 Bxc4 49. Ne3 $18) 48. Na5 {[%emt 0:00:36] Threatens to win with Nc6.} Bb5 {[%emt 0:00:14]} 49. Rc3 {[%emt 0:01:14]} Na4 {[%emt 0:05:05]} 50. Rb3 {[%emt 0:00:00]} Be8 {[%emt 0:00:04]} 51. Nc6 {[%emt 0:01:12]} Bxc6 {[%emt 0:00:19]} 52. Bxc6 {[%emt 0:00:01]} Nc5 {[%emt 0:00:22]} 53. Rc3 {[%emt 0:00:39]} Ne6 {[%emt 0:00:42]} 54. Bd5 {[%emt 0:00:30]} Kf8 $2 {[%emt 0:02:33]} (54... Kg7 {might work better.} 55. Kg2 Kf6) 55. b7 {[%emt 0:00:42]} Ke7 {[%emt 0:00:38]} (55... Nc7 {was necessary.} 56. Bf3 Ke7) 56. Kg2 {[%emt 0:00:17] Hoping for Rc8.} Nf8 $2 {[%emt 0:02:34]} (56... Nc7) 57. Bf3 {[%emt 0:00:22]} Rd2 {[%emt 0:03:12]} 58. Nd5+ {[%emt 0:00:59]} Kd6 {[%emt 0:00:02]} 59. Rc8 {[%emt 0:00:43]} Nd7 {[%emt 0:00:01]} 60. Ne3 {[%emt 0:00:56] Strongly threatening Nc4+.} Ra2 {[%emt 0:01:34]} 61. Nc4+ {[%emt 0:00:00]} Ke7 {[%emt 0:00:04]} 62. Bc6 {[%emt 0:00:47] And now Bxd7 would win.} Ba7 {[%emt 0:00:34]} 63. Rc7 {[%emt 0:00:34]} Rxf2+ {[%emt 0:00:04]} 64. Kh3 {[%emt 0:00:04]} Rc2 {[%emt 0:00:59]} 65. Rxd7+ {[%emt 0:00:08]} Kf6 {[%emt 0:00:01]} 66. Na5 {[%emt 0:00:45] aiming for Bd5.} h5 {[%emt 0:00:46]} 67. Be4 {[%emt 0:00:33]} Rb2 {[%emt 0:01:15]} 68. Nc6 {[%emt 0:00:19]} g5 {[%emt 0:00:17]} 69. g4 {[%emt 0:00:16] White wants to mate with Bd5.} Bg1 {[%emt 0:00:15]} 70. b8=Q {[%emt 0:00:15] Weighted Error Value: White=0.42/Black=0.35} (70. Rd6+ $142 Kg7 71. gxh5 g4+ 72. Kxg4 Be3 73. b8=Q Rxb8 74. Nxb8 Bh6 75. Kf5) 1-0

[Event "Mitropa Cup Women 2022"]
[Site "Corte"]
[Date "2022.05.06"]
[Round "7.5"]
[White "Movsesian, Julia"]
[Black "Zimina, Olga"]
[Result "1/2-1/2"]
[ECO "B12"]
[WhiteElo "2313"]
[BlackElo "2336"]
[Annotator "TA"]
[PlyCount "48"]
[EventDate "2022.04.30"]
[EventType "team-tourn"]
[EventCountry "FRA"]
[SourceTitle "playchess.com"]
[Source "ChessBase"]
[SourceQuality "1"]
[WhiteTeam "Czech Republic"]
[BlackTeam "Italy"]
[WhiteTeamCountry "CZE"]
[BlackTeamCountry "ITA"]
[TimeControl "40/5400+30:1800+30"]

{[%evp 9,48,0,10,4,14,0,23,8,14,33,34,24,36,15,94,92,105,94,151,140,148,132,145,129,150,136,181,172,168,152,168,164,172,159,213,0,0,0,212,0,0]} 1. e4 {[%emt 0:00:04]} c6 {[%emt 0:00:09]} 2. d4 {[%emt 0:00:12]} d5 {[%emt 0:00:08]} 3. e5 {[%emt 0:00:11]} c5 {[%emt 0:00:05]} 4. dxc5 {[%emt 0:00:12]} e6 {[%emt 0:00:05]} 5. a3 {[%emt 0:00:05]} Bxc5 {[%emt 0:00:05]} 6. Qg4 {[%emt 0:00:10] B12: Caro-Kann: Advance Variation.} Ne7 {[%emt 0:00:13]} 7. Nf3 {[%emt 0:00:23] [#] Hoping for b4.} O-O {[%emt 0:00:58] ...Qb6 is the strong threat.} 8. Bd3 {[%emt 0:01:02][%cal Od3h7] Black must now prevent Bxh7+! White has an edge.} f5 {[%emt 0:00:28]} 9. exf6 {[%emt 0:00:14]} Rxf6 {[%emt 0:00:07][%cal Oe6e5] And now ...e5! would win.} 10. Qh5 {[%emt 0:00:16] Dancing on a razor blade.} h6 {[%emt 0:00:28][%cal Oe6e5]} 11. O-O {[%emt 0:00:42] [#]} Bd7 $146 {[%emt 0:00:28] [#]} (11... Bd6 $11 {remains equal.}) ({Predecessor:} 11... Bd6 12. Re1 Nbc6 13. c4 Bd7 14. Nc3 Qe8 15. Qxe8+ Rxe8 16. Be3 a6 17. Rad1 Bc8 {1-0 (49) Leitao,R (2592)-Yuan,Q (2373) Chess.com INT 2022}) 12. b4 $1 $16 {[%emt 0:07:19][%cal Bb2b4,Bb4b5][%mdl 32]} Bd6 {[%emt 0:07:44]} 13. Bb2 {[%emt 0:01:07]} Qf8 {[%emt 0:19:07]} ({Black should try} 13... Rf8) 14. Bxf6 {[%emt 0:09:27] White is more active.} Qxf6 {[%emt 0:02:23]} 15. Nbd2 {[%emt 0:00:06]} Nbc6 {[%emt 0:14:21]} (15... e5 $2 16. Rfe1) 16. Rad1 {[%emt 0:03:27]} a5 {[%emt 0:02:10]} 17. b5 {[%emt 0:00:57]} Nd8 {[%emt 0:00:15]} 18. c4 {[%emt 0:03:35]} Nf7 {[%emt 0:01:41]} 19. cxd5 {[%emt 0:05:36]} exd5 {[%emt 0:00:05]} 20. a4 {[%emt 0:00:16]} Nf5 {[%emt 0:01:47]} 21. Qg4 {[%emt 0:17:03]} Bc5 {[%emt 0:19:47]} (21... Bb4 $16 22. Nb3 Rd8) 22. Qf4 {[%emt 0:12:39]} Bd6 $1 {[%emt 0:02:43] This bishop pair is nice.} 23. Qg4 {[%emt 0:01:46]} Bc5 $1 {[%emt 0:00:14]} (23... Ne5 $2 24. Nxe5 Qxe5 25. Nf3 $18) 24. Qf4 $2 {[%emt 0:01:49]} (24. Nb3 $18 Bb6 25. Rc1) 24... Bd6 $1 {[%emt 0:05:11] Weighted Error Value: White=0.22 (precise) /Black=0.16 (very precise)} 1/2-1/2

[Event "Mitropa Cup Women 2022"]
[Site "Corte"]
[Date "2022.05.06"]
[Round "7.6"]
[White "Brunello, Marina"]
[Black "Nemcova, Karin"]
[Result "1-0"]
[ECO "B90"]
[WhiteElo "2349"]
[BlackElo "2181"]
[Annotator "TA"]
[PlyCount "95"]
[EventDate "2022.04.30"]
[EventType "team-tourn"]
[EventCountry "FRA"]
[SourceTitle "playchess.com"]
[Source "ChessBase"]
[SourceQuality "1"]
[WhiteTeam "Italy"]
[BlackTeam "Czech Republic"]
[WhiteTeamCountry "ITA"]
[BlackTeamCountry "CZE"]
[TimeControl "40/5400+30:1800+30"]

{[%evp 21,95,0,-2,-23,-23,-23,-21,-37,0,0,34,18,79,84,113,40,145,129,120,141,133,84,77,77,81,75,112,60,146,151,218,212,226,233,272,274,328,321,347,310,358,354,712,725,955,935,854,876,1179,1121,1860,1805,1768,1773,1712,1639,1735,1297,1262,1185,2072,2181,1984,1741,29975,29976,29984,29985,29987,29987,29987,29988,29988,29989,29989,29985]} 1. e4 {[%emt 0:00:04]} c5 {[%emt 0:00:07]} 2. Nf3 {[%emt 0:00:13]} d6 {[%emt 0:00:09]} 3. d4 {[%emt 0:00:06]} cxd4 {[%emt 0:00:05]} 4. Nxd4 {[%emt 0:00:03]} Nf6 {[%emt 0:00:16]} 5. Nc3 {[%emt 0:00:07]} a6 {[%emt 0:00:07]} 6. Be3 {[%emt 0:00:07]} e6 {[%emt 0:00:13]} 7. Be2 {[%emt 0:01:54]} Be7 {[%emt 0:00:33]} 8. O-O {[%emt 0:03:40]} O-O {[%emt 0:02:47]} 9. f4 {[%emt 0:01:19]} Qc7 {[%emt 0:01:22]} 10. Bf3 {[%emt 0:07:04] 10.Kh1 is becoming the main line.} Nc6 {[%emt 0:05:42]} 11. Nb3 {[%emt 0:02:21]} b5 {[%emt 0:04:14]} 12. a4 {[%emt 0:04:25] B85: Sicilian Scheveningen: 6 Be2 a6, lines with early Be3.} b4 {[%emt 0:02:27]} 13. Ne2 {[%emt 0:00:48]} a5 {[%emt 0:04:55] [#]} 14. c4 $146 {[%emt 0:04:29] The position is equal.} ({Predecessor:} 14. Nbd4 Nxd4 15. Nxd4 Bb7 16. Nb5 Qb8 17. Qd3 {½-½ (17) Rabineau,C (2270)-Pruvot,L (2100) Paris 2012}) 14... bxc3 {[%emt 0:02:23]} 15. Nxc3 {[%emt 0:00:04]} Bb7 {[%emt 0:09:24]} 16. Nb5 {[%emt 0:02:26]} Qd7 {[%emt 0:00:56]} (16... Qb8 $11 {keeps the balance.}) 17. Rc1 $16 {[%emt 0:20:08][%cal Oe4e5] And now e5! would win.} Rfc8 {[%emt 0:10:22] [#]} 18. Nd2 {[%emt 0:02:32]} ({White should play} 18. e5 $1 $16 {[%cal Re5f6]} Nd5 19. Bxd5 exd5 20. exd6 Bxd6 21. Qxd5) 18... d5 {[%emt 0:04:31]} (18... Nb4 $14) 19. e5 {[%emt 0:00:12]} Ne8 {[%emt 0:01:12] [#]} 20. Nc4 $1 {[%emt 0:07:59][%mdl 512]} Bd8 {[%emt 0:01:35] [#]} 21. Nb6 {[%emt 0:04:52] 0x0.002ddf921d25dp-1022s more active pieces. The black rooks are badly placed.} (21. f5 $142 $1 {[%cal Rf5e6]}) 21... Bxb6 {[%emt 0:00:28]} 22. Bxb6 {[%emt 0:00:04]} Ba6 {[%emt 0:01:46]} 23. Be2 $36 {[%emt 0:00:39][%mdl 2048] White is in control.} Qb7 {[%emt 0:05:42]} 24. Bc5 {[%emt 0:03:16]} (24. Bf2 $16) 24... Bxb5 {[%emt 0:03:15]} ({Better is} 24... Na7 $14) 25. axb5 {[%emt 0:05:14]} ({Much less strong is} 25. Bxb5 $6 Nc7 $14) 25... Ne7 {[%emt 0:07:05]} (25... Nb4 $16 26. Qd4 Nc7) 26. Qd4 $18 {[%emt 0:04:35]} g6 {[%emt 0:07:01]} 27. g4 {[%emt 0:04:17] Inhibits h5.} Ng7 {[%emt 0:01:13]} 28. Rc3 {[%emt 0:00:27]} h5 {[%emt 0:07:01]} 29. h3 {[%emt 0:00:04]} Kh7 {[%emt 0:01:40]} 30. Bd3 {[%emt 0:03:38]} Qd7 {[%emt 0:03:51]} 31. Rfc1 {[%emt 0:00:29]} Rh8 $2 (31... a4 32. R3c2 Qd8) 32. Bd6 {[%emt 0:02:07] Hoping for Rc7. A strong pair of Bishops.} Ne8 {[%emt 0:05:44] [#] Inhibits Rc7.} 33. Rc7 $1 {[%emt 0:02:47][%mdl 512]} Nxc7 {[%emt 0:00:18]} 34. Rxc7 {[%emt 0:00:04]} Qd8 {[%emt 0:01:48]} 35. Rxe7 {[%emt 0:00:04]} hxg4 {[%emt 0:00:56]} 36. Rxf7+ {[%emt 0:00:24]} Kg8 {[%emt 0:00:52]} 37. Rf8+ {[%emt 0:00:58]} Qxf8 {[%emt 0:00:05]} 38. Bxf8 {[%emt 0:00:04][%cal Od4b6] White wants to mate with Qb6!} Rxf8 {[%emt 0:00:43]} 39. hxg4 {[%emt 0:00:36]} Rh4 {[%emt 0:00:38]} 40. Be2 {[%emt 0:00:10]} Rh3 {[%emt 0:02:00]} 41. f5 {[%emt 0:34:48]} gxf5 {[%emt 0:34:15]} 42. gxf5 {[%emt 0:00:29] Qg4+ would kill now.} exf5 {[%emt 0:00:43]} 43. Qxd5+ {[%emt 0:00:04] White mates.} Kh8 {[%emt 0:00:00]} 44. e6 {[%emt 0:00:00][%cal Be5e6,Be6e7][%mdl 32]} f4 {[%emt 0:00:00]} 45. Qe5+ {[%emt 0:00:00]} Kh7 {[%emt 0:00:00]} 46. e7 {[%emt 0:00:00]} Rg8+ {[%emt 0:00:00]} 47. Kf2 {[%emt 0:00:00]} Re3 {[%emt 0:00:00]} 48. Bd3+ {[%emt 0:00:00] Weighted Error Value: White=0.12 (very precise) /Black=0.54} 1-0

[Event "Mitropa Cup Women 2022"]
[Site "Corte"]
[Date "2022.05.06"]
[Round "7.6"]
[White "Heinatz, Gundula"]
[Black "Terbe, Zsuzsanna"]
[Result "1/2-1/2"]
[ECO "D00"]
[WhiteElo "2117"]
[BlackElo "2183"]
[Annotator "TA"]
[PlyCount "60"]
[EventDate "2022.04.30"]
[EventType "team-tourn"]
[EventCountry "FRA"]
[SourceTitle "playchess.com"]
[Source "ChessBase"]
[SourceQuality "1"]
[WhiteTeam "Switzerland"]
[BlackTeam "Hungary"]
[WhiteTeamCountry "SUI"]
[BlackTeamCountry "HUN"]
[TimeControl "40/5400+30:1800+30"]

{[%evp 9,60,0,-2,0,0,-11,0,7,2,0,-16,-10,19,0,14,23,19,29,22,-68,-64,-64,-50,-112,-104,-85,0,0,0,0,0,0,0,0,13,6,14,18,54,54,58,27,20,23,27,0,0,0,0,0,0,0,0]} 1. d4 {[%emt 0:00:03]} d5 {[%emt 0:00:07]} 2. Bf4 {[%emt 0:00:14]} Nf6 {[%emt 0:00:12]} 3. e3 {[%emt 0:00:05]} c5 {[%emt 0:00:04]} 4. c3 {[%emt 0:00:14]} Nc6 {[%emt 0:00:07]} 5. Nd2 {[%emt 0:01:37]} Bf5 {[%emt 0:00:13]} 6. Qb3 {[%emt 0:06:16] D00: 1 d4 d5: Unusual lines.} Qd7 {[%emt 0:00:10]} 7. Ngf3 {[%emt 0:00:29]} c4 {[%emt 0:00:07]} 8. Qd1 {[%emt 0:00:45]} e6 {[%emt 0:00:16]} 9. Ne5 {[%emt 0:09:46]} Nxe5 {[%emt 0:02:26]} 10. Bxe5 {[%emt 0:01:27]} Be7 {[%emt 0:04:46]} 11. Be2 {[%emt 0:02:53]} O-O {[%emt 0:00:36]} 12. g4 {[%emt 0:03:07]} Be4 {[%emt 0:08:45]} 13. Rg1 {[%emt 0:05:51] [#]} Qc6 $146 {[%emt 0:07:13]} ({Predecessor:} 13... Bg6 14. h4 h6 15. g5 hxg5 16. hxg5 Ne4 17. Nxe4 Bxe4 18. f3 Bg6 19. Kf2 Bd6 {½-½ (41) Gubajdullin,A (2343)-Bryakin,M (2459) Moscow 2020}) 14. Nf1 {[%emt 0:12:16]} ({White should try} 14. g5 $11 Nd7 15. Nxe4 dxe4 16. Bf4) 14... Nd7 $15 {[%emt 0:04:49]} 15. Bg3 {[%emt 0:00:14]} b5 {[%emt 0:08:15]} 16. f3 {[%emt 0:01:46]} ({Better is} 16. Nd2 $15) 16... Bg6 $17 {[%emt 0:00:17]} 17. h4 {[%emt 0:02:17][%cal Bh2h4,Bh4h5][%mdl 32]} b4 {[%emt 0:03:39]} (17... h6 $17) 18. h5 $11 {[%emt 0:01:14]} Bd3 {[%emt 0:00:06]} 19. Bxd3 {[%emt 0:00:52]} cxd3 {[%emt 0:00:06]} 20. Qxd3 {[%emt 0:00:04]} bxc3 {[%emt 0:00:50]} (20... Rfc8 {feels hotter.} 21. cxb4 Bxb4+ 22. Kd1 Qa4+) 21. Qxc3 {[%emt 0:10:33]} Qxc3+ {[%emt 0:16:04]} 22. bxc3 {[%emt 0:00:10]} Rfc8 {[%emt 0:00:09]} 23. Kd2 {[%emt 0:01:10][%cal Be1d2,Bd2d3,Bd3c2][%mdl 32]} Rc6 {[%emt 0:01:57]} 24. Kd3 {[%emt 0:12:30]} Rac8 {[%emt 0:01:06]} 25. Rc1 {[%emt 0:01:44]} Nb6 {[%emt 0:03:54][%cal Bd7b6,Bb6a4,Ba4b2][%mdl 32]} 26. Be1 {[%emt 0:01:34]} Na4 {[%emt 0:00:56]} 27. Ng3 {[%emt 0:03:00]} Nb2+ {[%emt 0:08:06] The position is equal.} 28. Kc2 {[%emt 0:05:08]} Nc4 {[%emt 0:00:48]} 29. Kd3 {[%emt 0:02:56]} Nb2+ {[%emt 0:03:02]} 30. Kc2 {[%emt 0:00:05]} Nc4 {[%emt 0:00:50] Weighted Error Value: White=0.13 (very precise) /Black=0.08 (flawless)} 1/2-1/2